fUSD/lending_fUSD_20240828
["ID","MTS","AMOUNT","RATE_DAILY","PERIOD"]
[336394510,1724805043502,-741.26640629,0.00011,2]
[336394687,1724805045417,-269.99197645,0.00010999,2]
[336394689,1724805045427,-27122.89848725,0.00011,2]
[336394695,1724805045477,-810.7547,0.00011,2]
[336394697,1724805045488,-1867.26480771,0.00011,2]
[336394723,1724805045733,-1595.07983397,0.00011,2]
[336394725,1724805045744,-46047.89672255,0.00011,2]
[336394727,1724805045755,-116800.0,0.00011,2]
[336394730,1724805045767,-16148.70353746,0.00011,2]
[336394732,1724805045782,-2784.40376051,0.00011,2]
[336394734,1724805045794,-3095.56445462,0.00011,2]
[336394737,1724805045810,-1454.83956636,0.00011,2]
[336394739,1724805045821,-1064.7,0.00011,2]
[336394741,1724805045833,-856.2321508,0.00011,2]
[336394743,1724805045844,-2311.24974926,0.00011,2]
[336394746,1724805045856,-278.60548855,0.00011,2]
[336395058,1724805049103,500.0,0.00025,120]
[336395087,1724805049374,192.22215428,0.00025,120]
[336395914,1724805060253,1500.0,9.78e-05,2]
[336395916,1724805080564,224.261,9.821e-05,2]
[336395918,1724805177770,469.43,8.444e-05,2]
[336395919,1724805201777,500.0,0.00024932,120]
[336395920,1724805345908,177.95,7.274e-05,2]
[336395921,1724805410191,188.72312924,8.817e-05,2]
[336395922,1724805410454,156.20895995,8.817e-05,2]
[336395923,1724805425508,524.13,0.00025,120]
[336395924,1724805425824,524.13,0.00025,120]
[336395925,1724805426099,524.13,0.00025,120]
[336395926,1724805426382,524.13,0.00025,120]
[336395927,1724805426703,524.13,0.00025,120]
[336395928,1724805427028,524.13,0.00025,120]
[336395929,1724805427623,524.13,0.00025,120]
[336395930,1724805427925,524.13,0.00025,120]
[336395931,1724805428196,524.13,0.00025,120]
[336395932,1724805428463,524.13,0.00025,120]
[336395933,1724805428755,524.13,0.00025,120]
[336395934,1724805429024,524.13,0.00025,120]
[336395935,1724805429311,524.13,0.00025,120]
[336395936,1724805429943,524.13,0.00025,120]
[336395937,1724805430231,524.13,0.00025,120]
[336395938,1724805431022,524.13,0.00025,120]
[336395939,1724805431126,524.13,0.00025,120]
[336395940,1724805431378,524.13,0.00025,120]
[336395941,1724805431680,524.13,0.00025,120]
[336395942,1724805432001,524.13,0.00025,120]
[336395943,1724805432310,524.13,0.00025,120]
[336395944,1724805432694,524.13,0.00025,120]
[336395945,1724805432966,524.13,0.00025,120]
[336395946,1724805433242,524.13564567,0.00025,120]
[336395947,1724805449468,1260.84762735,8.817e-05,2]
[336395948,1724805494036,197.37966561,0.00025,120]
[336395950,1724805657856,482.65,8.219e-05,2]
[336395951,1724805756334,2000.0,0.00025,120]
[336395952,1724805774378,2000.0,0.00025,120]
[336395953,1724805789161,2000.0,0.00025,120]
[336395959,1724805868303,177.95,7.031e-05,2]
[336395960,1724805918555,274.4076759,9.888e-05,2]
[336395961,1724805961417,1000.0,9.821e-05,2]
[336395962,1724805972024,250.0,9.821e-05,2]
[336395963,1724805982225,476.28,9.834e-05,2]
[336395964,1724805994796,178.31,9.857e-05,2]
[336395967,1724806102205,-397.4337,9.918e-05,2]
[336395968,1724806102235,-2562.77796281,9.918e-05,2]
[336395969,1724806102271,-1578.31583719,9.918e-05,2]
[336395970,1724806102300,-1000.0,9.918e-05,2]
[336395971,1724806102331,-381.89582562,9.918e-05,2]
[336395973,1724806102525,-2118.10417438,9.918e-05,2]
[336395974,1724806102554,-724.14915892,9.941e-05,2]
[336395976,1724806102591,-117.95832951,9.954e-05,2]
[336395977,1724806102628,-103.73167049,9.954e-05,2]
[336395978,1724806102659,-2856.47999232,9.999e-05,2]
[336395979,1724806102695,-2960.21166281,9.999e-05,2]
[336395980,1724806102731,-2949.48546664,9.999e-05,2]
[336395985,1724806140622,494.49,8.219e-05,2]
[336395986,1724806140758,823.44,0.00025,120]
[336395987,1724806141035,823.44,0.00025,120]
[336395988,1724806141314,823.44,0.00025,120]
[336395989,1724806141584,823.44,0.00025,120]
[336395990,1724806141835,823.44,0.00025,120]
[336395991,1724806142153,823.44,0.00025,120]
[336395992,1724806142432,823.44,0.00025,120]
[336395993,1724806142699,823.44,0.00025,120]
[336395994,1724806142979,823.44,0.00025,120]
[336395995,1724806143273,823.44,0.00025,120]
[336395996,1724806143546,823.44,0.00025,120]
[336395997,1724806143846,823.44,0.00025,120]
[336395998,1724806144129,823.44,0.00025,120]
[336395999,1724806144409,823.44,0.00025,120]
[336396000,1724806144668,823.44,0.00025,120]
[336396001,1724806145069,823.44,0.00025,120]
[336396002,1724806145334,823.44,0.00025,120]
[336396003,1724806145610,823.44,0.00025,120]
[336396004,1724806145912,823.44,0.00025,120]
[336396005,1724806146286,823.44,0.00025,120]
[336396006,1724806146757,823.44,0.00025,120]
[336396007,1724806146820,823.44,0.00025,120]
[336396008,1724806147098,823.44,0.00025,120]
[336396009,1724806147384,823.64567564,0.00025,120]
[336396030,1724806231577,-440.53719218,9.943e-05,2]
[336396031,1724806231587,-169.3694158,9.999e-05,2]
[336396032,1724806231597,-893.9951293,9.999e-05,2]
[336396033,1724806231606,-261.34998182,0.0001,2]
[336396034,1724806231632,-788.65001818,0.0001,2]
[336396035,1724806231642,-160.06652453,0.00010009,2]
[336396036,1724806231651,-156.45452687,0.00010009,2]
[336396037,1724806231661,-163.40966143,0.00010009,2]
[336396038,1724806231670,-155.0,0.00010026,2]
[336396039,1724806231680,-155.0,0.00010026,2]
[336396040,1724806231690,-150.0,0.00010055,2]
[336396041,1724806231699,-1300.59773488,0.00010097,2]
[336396042,1724806231708,-150.0,0.00010098,2]
[336396043,1724806231717,-260.89447866,0.00010099,2]
[336396044,1724806231728,-1487.19552134,0.00010099,2]
[336396045,1724806231738,-150.99,0.00010099,2]
[336396046,1724806231748,-2512.7,0.00010099,2]
[336396047,1724806231757,-299.99,0.00010099,2]
[336396048,1724806231766,-499.99,0.00010099,2]
[336396049,1724806231776,-494.49,0.00010469,2]
[336396050,1724806231786,-687.96190226,0.00010471,2]
[336396051,1724806231795,-687.96190226,0.00010471,2]
[336396052,1724806231804,-155.0,0.00010505,2]
[336396053,1724806231814,-501.27,0.00010505,2]
[336396054,1724806231823,-155.0,0.00010505,2]
[336396055,1724806231833,-20219.46,0.00010566,2]
[336396056,1724806231843,-5093.56247205,0.000106,2]
[336396057,1724806231854,-8857.72706137,0.000106,2]
[336396058,1724806231865,-491.54364268,0.000106,2]
[336396059,1724806231877,-415.09721781,0.000106,2]
[336396060,1724806231889,-308.807424,0.000106,2]
[336396061,1724806231905,-992.97608767,0.000106,2]
[336396062,1724806231916,-551.29288503,0.000106,2]
[336396063,1724806231928,-269.0000005,0.000106,2]
[336396064,1724806231942,-719.56763967,0.000106,2]
[336396065,1724806231953,-2739.25162751,0.000106,2]
[336396066,1724806231963,-1351.82604549,0.000106,2]
[336396067,1724806231974,-582.92504737,0.000106,2]
[336396072,1724806237887,-1908.71029907,0.000106,2]
[336396073,1724806237899,-26612.30646997,0.000106,2]
[336396074,1724806237910,-1433.91078519,0.000106,2]
[336396075,1724806237942,-1479.70572838,0.000106,2]
[336396076,1724806237952,-404.44779158,0.000106,2]
[336396077,1724806237964,-1756.33192736,0.000106,2]
[336396078,1724806238001,-651.2,0.000106,2]
[336396079,1724806238013,-6045.54035109,0.000106,2]
[336396080,1724806238025,-406.14743283,0.000106,2]
[336396081,1724806238057,-37886.76046338,0.000106,2]
[336396082,1724806238066,-4913.7551,0.000106,2]
[336396083,1724806238076,-586.249,0.000106,2]
[336396084,1724806238088,-749.37644773,0.00010781,2]
[336396085,1724806238098,-26561.7757,0.000108,2]
[336396086,1724806238107,-1500.0,0.00010812,2]
[336396087,1724806238119,-1500.0,0.00010831,2]
[336396088,1724806238128,-150.0,0.00010837,2]
[336396089,1724806238137,-150.0,0.00010838,2]
[336396090,1724806238146,-150.0,0.00010851,2]
[336396091,1724806238156,-1591.5115,0.0001089,2]
[336396092,1724806238166,-7500.0,0.00010899,2]
[336396094,1724806238175,-297.39561404,0.00010899,2]
[336396096,1724806238190,-297.39561399,0.00010899,2]
[336396098,1724806238200,-297.39561399,0.00010899,2]
[336396100,1724806238210,-297.39561399,0.00010899,2]
[336396102,1724806238220,-297.39561399,0.00010899,2]
[336396104,1724806238232,-297.39561399,0.00010899,2]
[336396106,1724806238242,-297.39561399,0.00010899,2]
[336396108,1724806238253,-297.39561399,0.00010899,2]
[336396110,1724806238263,-297.39561399,0.00010899,2]
[336396112,1724806238274,-342.05391482,0.00010899,2]
[336396114,1724806238284,-18207.46532615,0.000109,2]
[336396116,1724806238297,-24274.24887385,0.000109,2]
[336396118,1724806238307,-176.84604122,0.000109,2]
[336396120,1724806238318,-771.6551,0.000109,2]
[336396122,1724806238329,-1238.2426,0.000109,2]
[336396124,1724806238340,-1543.6991,0.000109,2]
[336396126,1724806238351,-297.39561399,0.000109,2]
[336396128,1724806238366,-156.7847564,0.000109,2]
[336396130,1724806238377,-3520.9421243,0.000109,2]
[336396133,1724806238388,-286.94285339,0.000109,2]
[336396135,1724806238399,-174.90327436,0.000109,2]
[336396137,1724806238410,-206.35284,0.00010958,2]
[336396139,1724806238421,-200.0,0.00010959,2]
[336396141,1724806238443,-181.19,0.00010959,2]
[336396143,1724806238455,-1301.03,0.00010959,2]
[336396145,1724806238465,-250.0,0.00010959,2]
[336396147,1724806238476,-500.0,0.00010973,2]
[336396149,1724806238487,-4247.69889184,0.00010976,2]
[336396151,1724806238498,-159.30616691,0.00010976,2]
[336396153,1724806238508,-1420.6154006,0.00010989,2]
[336396155,1724806238518,-1420.6154006,0.00010989,2]
[336396157,1724806238528,-1420.6154006,0.0001099,2]
[336396159,1724806238539,-7224.96713967,0.00010996,2]
[336396161,1724806238549,-206.35284,0.00010998,2]
[336396163,1724806238559,-500.0,0.00010998,2]
[336396165,1724806238569,-500.0,0.00010998,2]
[336396167,1724806238579,-500.0,0.00010998,2]
[336396189,1724806238788,-500.0,0.00010998,2]
[336396191,1724806238797,-500.0,0.00010998,2]
[336396193,1724806238806,-500.0,0.00010998,2]
[336396195,1724806238815,-189.36212033,0.00010998,2]
[336396197,1724806238825,-177.5,0.00010998,2]
[336396199,1724806238835,-500.0,0.00010998,2]
[336396201,1724806238844,-500.0,0.00010998,2]
[336396203,1724806238854,-500.0,0.00010998,2]
[336396205,1724806238863,-173.84341462,0.00010998,2]
[336396207,1724806238872,-500.0,0.00010998,2]
[336396209,1724806238882,-500.0,0.00010998,2]
[336396210,1724806238891,-336.04866111,0.00010998,2]
[336396212,1724806238900,-734.0,0.00010999,2]
[336396214,1724806238911,-269.99197645,0.00010999,2]
[336396217,1724806238921,-1184720.29320949,0.00010999,2]
[336396219,1724806238948,-345.0,0.00010999,2]
[336396221,1724806238960,-7266.08921481,0.00010999,2]
[336396286,1724806239732,-1387.96978456,0.00010999,2]
[336396315,1724806240003,-415540.15868394,0.00010999,2]
[336396316,1724806240013,-500.0,0.00010999,2]
[336396318,1724806240022,-150.0,0.00010999,2]
[336396320,1724806240033,-363825.29380837,0.00011,2]
[336396322,1724806240042,-5796816.56917475,0.00011,2]
[336396324,1724806240053,-1617.3920438,0.00011,2]
[336396332,1724806240112,-272.00738578,0.00011,2]
[336396334,1724806240123,-2319.99765624,0.00011,2]
[336396336,1724806240135,-51656.78567132,0.00011,2]
[336396608,1724806242753,-10202.92193007,0.00011,2]
[336396656,1724806243218,-1149.44775671,0.00011,2]
[336396658,1724806243229,-608.822415,0.00011,2]
[336396660,1724806243241,-289.34499,0.00011,2]
[336396663,1724806243253,-407.97,0.00011,2]
[336396905,1724806245843,-707.0,0.00011,2]
[336396907,1724806245853,-118046.75999106,0.00011,2]
[336396910,1724806245864,-564.69,0.00011,2]
[336396915,1724806245904,-656.5,0.00011,2]
[336398167,1724806386297,500.0,0.00025,120]
[336398168,1724806386567,262.20872209,0.00025,120]
[336398170,1724806401436,500.0,0.00024932,120]
[336398171,1724806418631,177.95,7.62e-05,2]
[336398172,1724806419316,231.55574708,0.00025,120]
[336398173,1724806680009,515.35,8.219e-05,2]
[336398174,1724806738766,13429.0,0.00025,120]
[336398175,1724806829730,233.8931744,0.00025,120]
[336398176,1724806862771,193.75,9.554e-05,2]
[336398177,1724806988515,310.0,9.044e-05,2]
[336398178,1724807015263,250.0,9.056e-05,2]
[336398180,1724807043164,800.0,9.061e-05,2]
[336398182,1724807055109,411.73,9.049e-05,2]
[336398184,1724807068556,2384.0,0.00025,120]
[336398191,1724807205606,523.33,8.219e-05,2]
[336398192,1724807223923,177.35,9.039e-05,2]
[336398193,1724807307742,12551.3106702,9.86e-05,2]
[336398232,1724807400483,-948.265,9.92e-05,2]
[336398234,1724807400514,-2366.95753842,9.92e-05,2]
[336398237,1724807400564,-133.04246158,9.92e-05,2]
[336398239,1724807400597,-769.5168,9.92e-05,2]
[336398240,1724807400631,-2412.66327684,9.941e-05,2]
[336398241,1724807400669,-623.53836966,9.941e-05,2]
[336398242,1724807400700,-723.25100348,9.941e-05,2]
[336398243,1724807400732,-927.44810215,9.943e-05,2]
[336398260,1724807431807,-295.4294,9.919e-05,2]
[336398261,1724807431820,-4.5706,9.919e-05,2]
[336398262,1724807431830,-4607.54050289,9.943e-05,2]
[336398263,1724807431839,-3942.5277368,9.943e-05,2]
[336398264,1724807431850,-314.39,9.954e-05,2]
[336398265,1724807431860,-314.39,9.957e-05,2]
[336398266,1724807431869,-314.39,9.959e-05,2]
[336398267,1724807431878,-314.39,9.962e-05,2]
[336398268,1724807431888,-314.39,9.965e-05,2]
[336398269,1724807431897,-314.39,9.967e-05,2]
[336398270,1724807431906,-314.39,9.97e-05,2]
[336398271,1724807431915,-226.74,9.97e-05,2]
[336398272,1724807431924,-314.39,9.972e-05,2]
[336398273,1724807431934,-499.99,9.972e-05,2]
[336398274,1724807431943,-314.39,9.975e-05,2]
[336398275,1724807431952,-499.99,9.975e-05,2]
[336398276,1724807431961,-314.39,9.978e-05,2]
[336398277,1724807431971,-314.39,9.98e-05,2]
[336398278,1724807431981,-314.39,9.983e-05,2]
[336398279,1724807431990,-314.39,9.986e-05,2]
[336398280,1724807432000,-6831.36219783,9.988e-05,2]
[336398281,1724807432009,-2413.27338937,9.988e-05,2]
[336398282,1724807432018,-314.39,9.988e-05,2]
[336398283,1724807432027,-314.39,9.991e-05,2]
[336398284,1724807432039,-314.39,9.994e-05,2]
[336398285,1724807432049,-314.39,9.996e-05,2]
[336398286,1724807432058,-150.0,9.998e-05,2]
[336398287,1724807432067,-314.39,9.999e-05,2]
[336398288,1724807432076,-2140.48,0.0001,2]
[336398289,1724807432086,-1000.0,0.0001,2]
[336398290,1724807432095,-3905.92649432,0.0001,2]
[336398291,1724807432104,-314.39,0.00010001,2]
[336398292,1724807432113,-314.39,0.00010004,2]
[336398293,1724807432122,-329.72977053,0.00010009,2]
[336398294,1724807432131,-200.0,0.00010016,2]
[336398295,1724807432140,-200.0,0.00010042,2]
[336398296,1724807432150,-26182.71491434,0.00010097,2]
[336398297,1724807432159,-588.41444189,0.00010097,2]
[336398298,1724807432169,-177.35,0.00010169,2]
[336398299,1724807432178,-800.0,0.00010194,2]
[336398300,1724807432188,-171.2,0.00010249,2]
[336398301,1724807432197,-523.33,0.00010424,2]
[336398302,1724807432207,-1945.571133,0.00010471,2]
[336398303,1724807432216,-1500.0,0.00010505,2]
[336398304,1724807432226,-790.97,0.00010541,2]
[336398305,1724807432235,-220.46307162,0.00010699,2]
[336398306,1724807432245,-155.67600159,0.00010713,2]
[336398307,1724807432254,-644.26694667,0.00010763,2]
[336398308,1724807432263,-600.79792946,0.00010799,2]
[336398309,1724807432273,-155.3160199,0.00010799,2]
[336398310,1724807432284,-155.0,0.00010799,2]
[336398311,1724807432295,-455.00039678,0.00010799,2]
[336398312,1724807432304,-155.04576753,0.00010799,2]
[336398313,1724807432313,-1604.1287,0.000108,2]
[336398314,1724807432323,-2788.50128551,0.000108,2]
[336398315,1724807432343,-30793.45968398,0.000108,2]
[336398316,1724807432353,-155.0,0.00010852,2]
[336398317,1724807432362,-380.85723231,0.00010852,2]
[336398318,1724807432372,-155.0,0.00010852,2]
[336398319,1724807432382,-248.64526366,0.00010852,2]
[336398320,1724807432392,-155.0,0.00010861,2]
[336398321,1724807432402,-155.38671598,0.00010861,2]
[336398322,1724807432413,-155.0,0.00010862,2]
[336398323,1724807432423,-319.66914744,0.00010888,2]
[336398324,1724807432432,-1276.46550139,0.0001089,2]
[336398325,1724807432442,-155.0,0.00010899,2]
[336398326,1724807432451,-156.14180465,0.00010899,2]
[336398327,1724807432461,-8725.68386145,0.00010899,2]
[336398328,1724807432471,-413.05389812,0.00010899,2]
[336398329,1724807432480,-439.97143011,0.00010899,2]
[336398330,1724807432489,-8725.68386138,0.00010899,2]
[336398331,1724807432499,-264.85272817,0.00010899,2]
[336398332,1724807432509,-3584.66230676,0.00010899,2]
[336398340,1724807437878,-205.22332201,0.00010852,2]
[336398342,1724807437888,-901.22201799,0.00010899,2]
[336398343,1724807437940,-4239.79953663,0.00010899,2]
[336398344,1724807437949,-8725.68386138,0.00010899,2]
[336398345,1724807437959,-8725.68386138,0.00010899,2]
[336398346,1724807437969,-7096.5384754,0.00010899,2]
[336398347,1724807437981,-1629.14538598,0.00010899,2]
[336398348,1724807437991,-427.60645619,0.00010899,2]
[336398349,1724807438002,-1954.87549614,0.00010899,2]
[336398350,1724807438062,-811.19730397,0.00010899,2]
[336398561,1724807440272,-515.97843211,0.00010899,2]
[336398804,1724807442848,-3939.92439593,0.00010899,2]
[336398806,1724807442861,-448.95942964,0.00010899,2]
[336398812,1724807442909,-627.1423474,0.00010899,2]
[336398814,1724807442919,-8725.68386138,0.00010899,2]
[336398816,1724807442929,-297.90042058,0.00010899,2]
[336398818,1724807442938,-2644.76551298,0.00010899,2]
[336398820,1724807442951,-1723.80973372,0.00010899,2]
[336398823,1724807442963,-694.5375725,0.00010899,2]
[336398876,1724807443449,-155.0,0.00010852,2]
[336398878,1724807443459,-1309.06406546,0.00010899,2]
[336398880,1724807443470,-935.898057,0.00010899,2]
[336398882,1724807443481,-1364.2199562,0.00010899,2]
[336398899,1724807443641,-53.38896352,0.00010899,2]
[336398901,1724807443650,-176.84604122,0.000109,2]
[336398903,1724807443660,-603.64487237,0.000109,2]
[336398905,1724807443671,-423.3701042,0.000109,2]
[336399066,1724807445772,-13109.52489308,0.000109,2]
[336399067,1724807445838,-1774.7151313,0.000109,2]
[336399068,1724807445851,-7767.81612531,0.000109,2]
[336399071,1724807445863,-300.0,0.000109,2]
[336399073,1724807445875,-19467.58779765,0.000109,2]
[336399076,1724807445902,-658.64785719,0.000109,2]
[336399084,1724807445967,-490.81696865,0.000109,2]
[336399086,1724807445978,-12627.83335025,0.000109,2]
[336399088,1724807445987,-1000.0,0.000109,2]
[336399090,1724807445997,-9782.56,0.000109,2]
[336399092,1724807446006,-420.0,0.00010911,2]
[336399094,1724807446015,-267.0,0.0001094,2]
[336399095,1724807446025,-200.0,0.00010959,2]
[336399097,1724807446034,-230.6,0.00010959,2]
[336399099,1724807446043,-175.42,0.00010959,2]
[336399101,1724807446054,-250.0,0.00010959,2]
[336399103,1724807446064,-500.0,0.00010973,2]
[336399105,1724807446073,-5800.0,0.00010991,2]
[336399107,1724807446083,-1229.628489,0.00010995,2]
[336399109,1724807446091,-5727.4896921,0.00010995,2]
[336399111,1724807446101,-150.0,0.00010997,2]
[336399113,1724807446110,-150.0,0.00010997,2]
[336399115,1724807446119,-150.0,0.00010997,2]
[336399117,1724807446132,-150.0,0.00010997,2]
[336399119,1724807446141,-150.0,0.00010997,2]
[336399121,1724807446151,-150.0,0.00010998,2]
[336399123,1724807446161,-150.0,0.00010998,2]
[336399125,1724807446170,-150.0,0.00010998,2]
[336399127,1724807446179,-150.0,0.00010998,2]
[336399129,1724807446189,-150.0,0.00010998,2]
[336399131,1724807446197,-165.0,0.00010998,2]
[336399133,1724807446206,-269.99197645,0.00010999,2]
[336399135,1724807446215,-5800.0,0.00010999,2]
[336399137,1724807446224,-359.09985769,0.00010999,2]
[336399138,1724807446233,-605.8706845,0.00010999,2]
[336399140,1724807446242,-690.0,0.00011,2]
[336399142,1724807446252,-2573.4422168,0.00011,2]
[336399486,1724807528324,177.95,7.296e-05,2]
[336399487,1724807603833,500.0,0.00024932,120]
[336399490,1724807899025,197.37966561,0.00025,120]
[336399491,1724807900338,537.23,8.219e-05,2]
[336399494,1724807946324,1563.2312,9.845e-05,2]
[336399495,1724807952754,5533.4386,9.845e-05,2]
[336399499,1724808028343,480.0,9.904e-05,2]
[336399500,1724808056554,2500.0,9.845e-05,2]
[336399501,1724808063219,559.07,9.9e-05,2]
[336399502,1724808112268,295.50430273,9.9e-05,2]
[336399503,1724808146382,205.86,9.864e-05,2]
[336399504,1724808271594,500.0,0.00025,120]
[336399505,1724808271734,200.0,9.842e-05,2]
[336399506,1724808271930,500.0,0.00025,120]
[336399507,1724808272204,500.0,0.00025,120]
[336399508,1724808272473,500.0,0.00025,120]
[336399509,1724808272722,500.0,0.00025,120]
[336399510,1724808272982,500.0,0.00025,120]
[336399511,1724808273275,500.0,0.00025,120]
[336399512,1724808273542,500.0,0.00025,120]
[336399513,1724808273807,500.0,0.00025,120]
[336399514,1724808274115,500.0,0.00025,120]
[336399515,1724808274392,500.0,0.00025,120]
[336399516,1724808274668,262.89812173,0.00025,120]
[336399517,1724808317732,150.0,9.888e-05,2]
[336399519,1724808361622,160.60177993,9e-05,2]
[336399521,1724808465312,541.24,8.219e-05,2]
[336399522,1724808486453,3112.049115,9.867e-05,2]
[336399526,1724808533916,-236.48568898,9.917e-05,2]
[336399528,1724808533949,-3255.8848392,9.917e-05,2]
[336399529,1724808533986,-1363.73067727,9.917e-05,2]
[336399532,1724808541157,616.0,9.834e-05,2]
[336399544,1724808559022,-3589.49255229,9.917e-05,2]
[336399545,1724808559060,-1231.71233158,9.917e-05,2]
[336399597,1724808583927,-500.0,9.92e-05,2]
[336399599,1724808583959,-1621.6454,9.92e-05,2]
[336399609,1724808585110,1564.27124997,9.731e-05,2]
[336399610,1724808585143,1809.58882907,9.731e-05,2]
[336399611,1724808585168,11065.30992096,9.731e-05,2]
[336399612,1724808596910,1605.35014,9.909e-05,2]
[336399613,1724808596937,450.0,9.764e-05,2]
[336399627,1724808632130,-255.55464915,9.943e-05,2]
[336399628,1724808632140,-253.59,9.952e-05,2]
[336399629,1724808632150,-155.0,9.988e-05,2]
[336399630,1724808632164,-180.49131868,9.988e-05,2]
[336399631,1724808632175,-2.76814596,9.988e-05,2]
[336399632,1724808632185,-787.39094366,9.999e-05,2]
[336399633,1724808632196,-416.68171779,9.999e-05,2]
[336399634,1724808632208,-23481.92976943,9.999e-05,2]
[336399635,1724808632218,-300.0,9.999e-05,2]
[336399636,1724808632228,-150.0,9.999e-05,2]
[336399637,1724808632238,-3036.46722466,9.999e-05,2]
[336399638,1724808632250,-298.64601074,9.999e-05,2]
[336399639,1724808632259,-2000.0,0.0001,2]
[336399640,1724808632268,-2000.0,0.0001,2]
[336399641,1724808632278,-210.77402829,0.0001,2]
[336399642,1724808632288,-1050.0,0.0001,2]
[336399643,1724808632298,-228.98934259,0.0001,2]
[336399644,1724808632307,-4198.21786108,0.0001,2]
[336399645,1724808632317,-4780.50792128,0.0001,2]
[336399646,1724808632326,-287.26,0.00010009,2]
[336399647,1724808632335,-808.25284019,0.00010009,2]
[336399648,1724808632344,-164.42960142,0.00010009,2]
[336399649,1724808632353,-188.44410812,0.00010009,2]
[336399650,1724808632367,-7033.38,0.00010026,2]
[336399651,1724808632376,-299.99,0.00010026,2]
[336399652,1724808632386,-499.99,0.00010026,2]
[336399654,1724808632395,-174.07142396,0.00010026,2]
[336399655,1724808632405,-236.18590406,0.00010026,2]
[336399656,1724808632414,-330.34282033,0.00010026,2]
[336399657,1724808632424,-650.53175798,0.00010026,2]
[336399658,1724808632434,-156.53651598,0.00010026,2]
[336399659,1724808632443,-357.68666439,0.00010097,2]
[336399660,1724808632452,-455.00039678,0.00010097,2]
[336399661,1724808632462,-155.0,0.00010097,2]
[336399662,1724808632472,-328.52065361,0.00010097,2]
[336399663,1724808632481,-455.00039678,0.00010097,2]
[336399664,1724808632490,-267.36457028,0.00010097,2]
[336399665,1724808632499,-380.85723231,0.00010097,2]
[336399666,1724808632508,-155.0,0.00010097,2]
[336399667,1724808632518,-380.89046373,0.00010097,2]
[336399668,1724808632527,-210.52,0.00010171,2]
[336399669,1724808632536,-531.46,0.00010278,2]
[336399670,1724808632546,-200.45,0.00010278,2]
[336399671,1724808632555,-150.99,0.00010278,2]
[336399672,1724808632564,-427.02,0.00010378,2]
[336399673,1724808632573,-357.05,0.00010378,2]
[336399674,1724808632583,-427.02,0.00010378,2]
[336399675,1724808632593,-357.05,0.00010378,2]
[336399676,1724808632603,-427.02,0.00010378,2]
[336399677,1724808632617,-357.05,0.00010378,2]
[336399678,1724808632626,-427.02,0.00010378,2]
[336399679,1724808632635,-541.24,0.00010459,2]
[336399680,1724808632645,-236.54141878,0.00010471,2]
[336399681,1724808632654,-1076.1706572,0.00010471,2]
[336399682,1724808632664,-150.0,0.00010478,2]
[336399683,1724808632674,-150.0,0.00010478,2]
[336399684,1724808632683,-152.62,0.000105,2]
[336399685,1724808632692,-983.71,0.000105,2]
[336399686,1724808632701,-449.42,0.000105,2]
[336399687,1724808632710,-531.76,0.000105,2]
[336399688,1724808632719,-150.0,0.000105,2]
[336399689,1724808632729,-3000.0,0.000105,2]
[336399690,1724808632738,-891.9868431,0.00010505,2]
[336399691,1724808632747,-1298.23330788,0.00010505,2]
[336399692,1724808632756,-3879.82904589,0.00010566,2]
[336399693,1724808632765,-155.0,0.00010699,2]
[336399694,1724808632775,-155.0,0.00010699,2]